[Event "44th Chess Olympiad Women 2022"]
[Site "Chennai"]
[Date "2022.08.07"]
[Round "9.31"]
[White "Thurner, Anya"]
[Black "Rodsmoen, Maud"]
[Result "0-1"]
[WhiteElo "1619"]
[BlackElo "1975"]
[Annotator "RC"]
[PlyCount "126"]
[EventDate "2022.??.??"]
[TimeControl "60"]

1. e4 {[%emt 0:00:01]} c5 {[%emt 0:00:04]} 2. b3 {[%emt 0:00:08]} g6 {[%emt 0:
00:00]} 3. Bb2 {[%emt 0:00:04]} Nf6 {[%emt 0:00:06]} 4. e5 {[%emt 0:00:03]} Nd5
{[%emt 0:00:13]} 5. Nc3 {[%emt 0:00:06]} Nb4 {[%emt 0:01:49]} 6. a3 {[%emt 0:
00:00]} N4c6 {[%emt 0:00:29]} 7. f4 {[%emt 0:01:17]} Bg7 {[%emt 0:03:09]} 8.
Nf3 {[%emt 0:01:47]} d6 {[%emt 0:06:23]} 9. exd6 {[%emt 0:03:12]} O-O {[%emt 0:
00:00]} 10. Bc4 {[%emt 0:12:22]} Qxd6 {[%emt 0:13:27]} 11. Nb5 {[%emt 0:19:51]}
Qd8 {[%emt 0:08:19]} 12. Bxg7 {[%emt 0:01:18]} Kxg7 {[%emt 0:00:04]} 13. O-O {
[%emt 0:01:12]} a6 {[%emt 0:02:52]} 14. Nc3 {[%emt 0:00:14]} b5 {[%emt 0:03:14]
} 15. Bd5 {[%emt 0:00:56]} e6 {[%emt 0:04:19]} 16. Bxc6 {[%emt 0:03:50]} Nxc6 {
[%emt 0:00:35]} 17. Qe2 {[%emt 0:05:06]} Bb7 {[%emt 0:05:10]} 18. Kh1 {[%emt 0:
00:00]} Qc7 {[%emt 0:04:41]} 19. Ne4 {[%emt 0:06:57]} Ne7 {[%emt 0:06:38]} 20.
Qe3 {[%emt 0:11:30]} Bxe4 {[%emt 0:07:18]} 21. Qxe4 {[%emt 0:00:46]} Rad8 {
[%emt 0:02:11]} 22. d3 {[%emt 0:09:06]} Nd5 {[%emt 0:03:36]} 23. Nd2 {[%emt 0:
00:00]} Nf6 {[%emt 0:01:12]} 24. Qe2 {[%emt 0:02:28]} Rd4 {[%emt 0:02:00]} 25.
g3 {[%emt 0:02:39]} Rfd8 {[%emt 0:01:18]} 26. Rfd1 {[%emt 0:04:04]} h5 {
[%emt 0:04:56]} 27. Nf3 {[%emt 0:00:38]} Qb7 {[%emt 0:01:40]} 28. Kg1 {[%emt 0:
00:00]} R4d6 {[%emt 0:00:44]} 29. Ng5 {[%emt 0:04:17]} h4 {[%emt 0:05:28]} 30.
Qf3 {[%emt 0:02:06]} Qb6 {[%emt 0:02:20]} 31. Kg2 {[%emt 0:00:35]} Rd4 {
[%emt 0:02:52]} 32. Ne4 {[%emt 0:00:36]} Nxe4 {[%emt 0:02:02]} 33. dxe4 {
[%emt 0:00:10]} Rd2+ {[%emt 0:01:26]} 34. Rxd2 {[%emt 0:00:30]} Rxd2+ {[%emt 0:
00:00]} 35. Kh1 {[%emt 0:00:21]} hxg3 {[%emt 0:02:08]} 36. Qc3+ {[%emt 0:00:16]
} Rd4 {[%emt 0:00:05]} 37. hxg3 {[%emt 0:00:17]} Qc6 {[%emt 0:01:13]} 38. Re1 {
[%emt 0:00:42]} Kg8 {[%emt 0:01:37]} 39. Qe3 {[%emt 0:00:36]} f5 {[%emt 0:00:
00]} 40. Kg2 {[%emt 0:01:16]} Rxe4 {[%emt 0:01:19]} 41. Qf3 {[%emt 0:30:33]}
Qd5 {[%emt 0:04:10]} 42. Rxe4 {[%emt 0:00:00]} fxe4 {[%emt 0:01:28]} 43. Qe3 {
[%emt 0:00:00]} Kf7 {[%emt 0:02:06]} 44. g4 {[%emt 0:00:00]} Qd4 {[%emt 0:00:
00]} 45. Qe2 {[%emt 0:00:00]} Kf6 {[%emt 0:02:32]} 46. Qe1 {[%emt 0:00:00]} g5
{[%emt 0:03:22]} 47. Kh3 {[%emt 0:00:04]} e3 {[%emt 0:04:16]} 48. fxg5+ {
[%emt 0:01:32]} Kxg5 {[%emt 0:03:32]} 49. Qh4+ {[%emt 0:00:46]} Kf4 {[%emt 0:
00:00]} 50. Qg3+ {[%emt 0:00:27]} Ke4 {[%emt 0:00:44]} 51. Qg2+ {[%emt 0:00:36]
} Ke5 {[%emt 0:00:42]} 52. Qh2+ {[%emt 0:02:03]} Qf4 {[%emt 0:00:19]} 53. Qe2 {
[%emt 0:00:29]} Qf2 {[%emt 0:02:21]} 54. Qd3 {[%emt 0:00:24]} e2 {[%emt 0:00:
00]} 55. Qc3+ {[%emt 0:00:17]} Kf4 {[%emt 0:01:21]} 56. Qf6+ {[%emt 0:00:18]}
Ke3 {[%emt 0:00:02]} 57. Qc3+ {[%emt 0:00:16]} Ke4 {[%emt 0:00:18]} 58. Qd3+ {
[%emt 0:00:12]} Ke5 {[%emt 0:00:17]} 59. Qc3+ {[%emt 0:00:24]} Kd6 {[%emt 0:00:
00]} 60. Qd3+ {[%emt 0:00:34]} Ke7 {[%emt 0:00:40]} 61. Qh7+ {[%emt 0:00:19]}
Qf7 {[%emt 0:00:33]} 62. Qh4+ {[%emt 0:00:43]} Ke8 {[%emt 0:00:06]} 63. Kh2 {
[%emt 0:01:32]} Qf4+ {[%emt 0:00:36]} 0-1

[Event "44th Chess Olympiad Women 2022"]
[Site "Chennai"]
[Date "2022.08.07"]
[Round "9.32"]
[White "Abeysinghe, H M H Janandani"]
[Black "Jansone, Melanija Luize"]
[Result "1/2-1/2"]
[WhiteElo "1516"]
[BlackElo "1584"]
[Annotator "NA RC"]
[PlyCount "122"]
[EventDate "2022.??.??"]
[TimeControl "60"]

1. e4 {[%emt 0:00:04]} c5 {[%emt 0:00:28]} 2. Nc3 {[%emt 0:00:24]} Nc6 {
[%emt 0:00:30]} 3. f4 {[%emt 0:00:44]} e6 {[%emt 0:01:15]} 4. Nf3 {[%emt 0:00:
00]} Nge7 {[%emt 0:00:50]} 5. d3 {[%emt 0:07:26]} d5 {[%emt 0:06:31]} 6. e5 {
[%emt 0:03:46]} a6 {[%emt 0:04:37]} 7. a4 {[%emt 0:01:17]} Nf5 {[%emt 0:06:50]}
8. Be2 {[%emt 0:02:20]} g6 {[%emt 0:00:39]} 9. O-O {[%emt 0:00:37]} Bg7 {
[%emt 0:00:12]} 10. Qe1 {[%emt 0:04:24]} O-O {[%emt 0:01:36]} 11. g4 {[%emt 0:
00:00]} Nfd4 {[%emt 0:00:30]} 12. Nxd4 {[%emt 0:01:32]} Nxd4 {[%emt 0:00:18]}
13. Bd1 {[%emt 0:01:40]} b6 {[%emt 0:13:06]} 14. Nb1 {[%emt 0:06:12]} Bb7 {
[%emt 0:07:48]} 15. c3 {[%emt 0:00:11]} Nc6 {[%emt 0:00:20]} 16. Bf3 {[%emt 0:
00:00]} Qc7 {[%emt 0:03:09]} 17. Na3 {[%emt 0:02:55]} Rad8 {[%emt 0:03:48]} 18.
Bd2 {[%emt 0:02:29]} Qe7 {[%emt 0:14:51]} 19. g5 {[%emt 0:04:19]} Na5 {[%emt 0:
00:00]} 20. Nc2 {[%emt 0:07:43]} Nb3 {[%emt 0:01:18]} 21. Ra3 {[%emt 0:00:58]}
Nxd2 {[%emt 0:01:59]} 22. Qxd2 {[%emt 0:00:10]} d4 {[%emt 0:01:22]} 23. c4 {
[%emt 0:01:03]} Rb8 {[%emt 0:02:36]} 24. Ne1 {[%emt 0:13:03]} b5 {[%emt 0:00:
00]} 25. axb5 {[%emt 0:03:14]} Bxf3 {[%emt 0:01:04]} 26. Nxf3 {[%emt 0:00:21]}
axb5 {[%emt 0:00:08]} 27. b3 {[%emt 0:00:27]} bxc4 {[%emt 0:03:42]} 28. bxc4 {
[%emt 0:00:10]} Rb4 {[%emt 0:00:35]} 29. Qg2 {[%emt 0:08:27]} Rfb8 {[%emt 0:00:
00]} 30. Nd2 {[%emt 0:00:42]} Rb2 {[%emt 0:01:25]} 31. Ra8 {[%emt 0:04:29]} Qd8
{[%emt 0:01:18]} 32. Rxb8 {[%emt 0:01:17]} Qxb8 {[%emt 0:00:11]} 33. Rd1 {
[%emt 0:00:30]} Bf8 {[%emt 0:00:51]} 34. Qc6 {[%emt 0:01:26]} Qb4 {[%emt 0:00:
00]} 35. Ne4 {[%emt 0:00:59]} Rb1 {[%emt 0:01:49]} 36. Nf6+ {[%emt 0:00:48]}
Kg7 {[%emt 0:00:36]} 37. Qf3 {[%emt 0:00:58]} Rb2 {[%emt 0:00:38]} 38. h4 {
[%emt 0:01:21]} Qb3 {[%emt 0:01:40]} 39. h5 {[%emt 0:02:36]} Qc2 {[%emt 0:00:
00]} 40. h6+ {[%emt 0:01:01]} Kh8 {[%emt 0:00:12]} 41. Ng4 {[%emt 0:33:04]} Kg8
{[%emt 0:32:13]} 42. Ra1 {[%emt 0:00:00]} Qd2 {[%emt 0:00:00]} 43. Rd1 {
[%emt 0:00:00]} Qc2 {[%emt 0:00:00]} 44. Rf1 {[%emt 0:00:00]} Ra2 {[%emt 0:00:
00]} 45. Nf2 {[%emt 0:00:00]} Qb2 {[%emt 0:00:00]} 46. Qd1 {[%emt 0:00:00]} Be7
{[%emt 0:00:00]} 47. Qf3 {[%emt 0:00:00]} Bf8 {[%emt 0:00:00]} 48. Kg2 {
[%emt 0:00:00]} Qc2 {[%emt 0:00:00]} 49. Qd1 {[%emt 0:00:00]} Qb2 {[%emt 0:00:
00]} 50. Kg3 {[%emt 0:00:00]} Be7 {[%emt 0:00:00]} 51. Qf3 {[%emt 0:00:00]} Bf8
{[%emt 0:00:00]} 52. Ng4 {[%emt 0:00:00]} Ra3 {[%emt 0:00:00]} 53. Nf2 {
[%emt 0:00:00]} Ra2 {[%emt 0:00:00]} 54. Rg1 {[%emt 0:00:00]} Qc2 {[%emt 0:00:
00]} 55. Rg2 {[%emt 0:00:38]} Ra3 {[%emt 0:00:00]} 56. Rg1 {[%emt 0:02:53]} Ra2
{[%emt 0:00:00]} 57. Ng4 {[%emt 0:00:54]} Ra3 {[%emt 0:00:00]} 58. Nf2 {
[%emt 0:01:04]} Ra2 {[%emt 0:00:00]} 59. Rg2 {[%emt 0:00:52]} Ra3 {[%emt 0:00:
00]} 60. Rg1 {[%emt 0:00:49]} Ra2 {[%emt 0:00:38]} 61. Rg2 {[%emt 0:01:28]} Ra3
{[%emt 0:01:12]} 1/2-1/2

[Event "44th Chess Olympiad Women 2022"]
[Site "Chennai"]
[Date "2022.08.07"]
[Round "9.32"]
[White "Maklakova, Nellija"]
[Black "Gamage, Desandhi Dhihansa"]
[Result "1-0"]
[WhiteElo "1819"]
[BlackElo "1561"]
[Annotator "NA RC"]
[PlyCount "167"]
[EventDate "2022.??.??"]
[TimeControl "60"]

1. d4 {[%emt 0:00:02]} Nf6 {[%emt 0:00:03]} 2. Nf3 {[%emt 0:00:07]} e6 {
[%emt 0:00:06]} 3. e3 {[%emt 0:00:07]} g6 {[%emt 0:00:46]} 4. Be2 {[%emt 0:00:
00]} Bg7 {[%emt 0:00:07]} 5. c4 {[%emt 0:01:21]} c5 {[%emt 0:01:39]} 6. O-O {
[%emt 0:02:27]} O-O {[%emt 0:00:49]} 7. Nc3 {[%emt 0:06:27]} d6 {[%emt 0:13:38]
} 8. b3 {[%emt 0:01:28]} Nc6 {[%emt 0:00:43]} 9. Bb2 {[%emt 0:00:29]} b6 {
[%emt 0:01:18]} 10. Qd2 {[%emt 0:03:42]} Bb7 {[%emt 0:05:57]} 11. Rfd1 {
[%emt 0:01:43]} a6 {[%emt 0:03:02]} 12. d5 {[%emt 0:03:24]} exd5 {[%emt 0:00:
00]} 13. Nxd5 {[%emt 0:04:12]} Ne4 {[%emt 0:22:51]} 14. Qc2 {[%emt 0:00:27]}
Nb4 {[%emt 0:03:33]} 15. Nxb4 {[%emt 0:23:20]} cxb4 {[%emt 0:01:06]} 16. Bxg7 {
[%emt 0:11:04]} Kxg7 {[%emt 0:00:05]} 17. Rd4 {[%emt 0:00:30]} Nc3 {[%emt 0:00:
00]} 18. Ne1 {[%emt 0:01:58]} Rc8 {[%emt 0:09:04]} 19. Bf1 {[%emt 0:02:45]} Qf6
{[%emt 0:00:33]} 20. a3 {[%emt 0:02:12]} Nb5 {[%emt 0:08:16]} 21. Rdd1 {
[%emt 0:02:28]} bxa3 {[%emt 0:00:47]} 22. Qd3 {[%emt 0:08:26]} Nc3 {[%emt 0:00:
00]} 23. Rdc1 {[%emt 0:00:11]} Ne4 {[%emt 0:00:18]} 24. f3 {[%emt 0:08:26]} Nc5
{[%emt 0:00:47]} 25. Qc3 {[%emt 0:03:13]} d5 {[%emt 0:06:27]} 26. Rxa3 {
[%emt 0:01:15]} dxc4 {[%emt 0:00:45]} 27. Qxf6+ {[%emt 0:02:43]} Kxf6 {[%emt 0:
00:00]} 28. bxc4 {[%emt 0:00:05]} Rfd8 {[%emt 0:01:37]} 29. Nc2 {[%emt 0:00:40]
} Ne6 {[%emt 0:02:44]} 30. Nb4 {[%emt 0:03:24]} a5 {[%emt 0:00:43]} 31. Nd3 {
[%emt 0:00:51]} Nc5 {[%emt 0:00:30]} 32. Nxc5 {[%emt 0:00:44]} Rxc5 {[%emt 0:
00:00]} 33. Rb1 {[%emt 0:00:08]} Rd6 {[%emt 0:02:45]} 34. Rab3 {[%emt 0:00:09]}
Ba6 {[%emt 0:01:26]} 35. Rxb6 {[%emt 0:00:15]} Rdc6 {[%emt 0:00:21]} 36. Rxc6+
{[%emt 0:01:56]} Rxc6 {[%emt 0:00:04]} 37. Ra1 {[%emt 0:02:34]} Bxc4 {[%emt 0:
00:00]} 38. Rxa5 {[%emt 0:00:06]} Bxf1 {[%emt 0:00:07]} 39. Kxf1 {[%emt 0:00:
00]} Rc2 {[%emt 0:00:31]} 40. Rd5 {[%emt 0:00:12]} Rc6 {[%emt 0:00:18]} 41. Kf2
{[%emt 0:30:12]} Ke6 {[%emt 0:30:07]} 42. Rd2 {[%emt 0:00:07]} h5 {[%emt 0:00:
00]} 43. f4 {[%emt 0:00:24]} f6 {[%emt 0:00:35]} 44. Kf3 {[%emt 0:01:10]} Ra6 {
[%emt 0:00:14]} 45. Rd8 {[%emt 0:00:10]} f5 {[%emt 0:02:24]} 46. h3 {[%emt 0:
00:00]} Kf6 {[%emt 0:01:19]} 47. Re8 {[%emt 0:00:22]} Kf7 {[%emt 0:00:37]} 48.
Re5 {[%emt 0:00:06]} Kf6 {[%emt 0:00:59]} 49. g4 {[%emt 0:00:23]} hxg4+ {
[%emt 0:00:29]} 50. hxg4 {[%emt 0:00:04]} fxg4+ {[%emt 0:00:09]} 51. Kxg4 {
[%emt 0:00:06]} Ra1 {[%emt 0:00:52]} 52. Kf3 {[%emt 0:00:49]} Ra6 {[%emt 0:00:
00]} 53. Rd5 {[%emt 0:00:29]} Ke6 {[%emt 0:01:12]} 54. e4 {[%emt 0:02:26]} Ra3+
{[%emt 0:03:55]} 55. Ke2 {[%emt 0:01:41]} Ra6 {[%emt 0:00:00]} 56. Ke3 {
[%emt 0:00:00]} Ra3+ {[%emt 0:00:00]} 57. Rd3 {[%emt 0:00:00]} Ra6 {[%emt 0:00:
00]} 58. Rb3 {[%emt 0:00:00]} Rd6 {[%emt 0:00:00]} 59. Kf3 {[%emt 0:00:00]} Rd1
{[%emt 0:00:00]} 60. Rb6+ {[%emt 0:00:00]} Kf7 {[%emt 0:00:00]} 61. e5 {
[%emt 0:00:00]} Rf1+ {[%emt 0:00:00]} 62. Ke3 {[%emt 0:00:00]} Ra1 {[%emt 0:00:
00]} 63. Rd6 {[%emt 0:00:00]} Ra3+ {[%emt 0:00:00]} 64. Ke4 {[%emt 0:00:00]}
Ra4+ {[%emt 0:00:00]} 65. Rd4 {[%emt 0:00:00]} Ra5 {[%emt 0:00:00]} 66. Rc4 {
[%emt 0:00:00]} Rb5 {[%emt 0:00:00]} 67. Rc7+ {[%emt 0:00:00]} Kf8 {[%emt 0:00:
00]} 68. e6 {[%emt 0:00:00]} Ra5 {[%emt 0:00:00]} 69. Rd7 {[%emt 0:00:00]} Ra4+
{[%emt 0:00:00]} 70. Ke5 {[%emt 0:00:00]} Ra5+ {[%emt 0:00:00]} 71. Kf6 {
[%emt 0:00:00]} Rf5+ {[%emt 0:00:00]} 72. Kxg6 {[%emt 0:00:00]} Ra5 {[%emt 0:
00:00]} 73. f5 {[%emt 0:00:00]} Ra6 {[%emt 0:00:00]} 74. Kf6 {[%emt 0:00:00]}
Ke8 {[%emt 0:00:00]} 75. Rh7 {[%emt 0:00:00]} Kd8 {[%emt 0:00:00]} 76. Rh8+ {
[%emt 0:00:00]} Kc7 {[%emt 0:00:03]} 77. Kf7 {[%emt 0:00:00]} Ra7 {[%emt 0:00:
00]} 78. e7 {[%emt 0:00:00]} Kd6 {[%emt 0:00:18]} 79. f6 {[%emt 0:00:00]} Ke5 {
[%emt 0:00:17]} 80. Rh5+ {[%emt 0:00:00]} Kd6 {[%emt 0:00:07]} 81. Kf8 {
[%emt 0:00:00]} Ke6 {[%emt 0:00:24]} 82. e8=Q+ {[%emt 0:00:00]} Kxf6 {[%emt 0:
00:00]} 83. Qe5+ {[%emt 0:00:00]} Kg6 {[%emt 0:00:00]} 84. Qf5# {[%emt 0:00:00]
} 1-0

[Event "44th Chess Olympiad Women 2022"]
[Site "Chennai"]
[Date "2022.08.07"]
[Round "9.32"]
[White "Ranasinghe, S D.."]
[Black "Ter-Avetisjana, Agnesa Stepania"]
[Result "0-1"]
[WhiteElo "1687"]
[BlackElo "1962"]
[Annotator "NA COMBH"]
[PlyCount "70"]
[EventDate "2022.??.??"]
[TimeControl "60"]

1. Nf3 {[%emt 0:00:03]} d5 {[%emt 0:00:19]} 2. c4 {[%emt 0:00:07]} c6 {[%emt 0:
00:00]} 3. e3 {[%emt 0:00:06]} Nf6 {[%emt 0:00:43]} 4. b3 {[%emt 0:00:09]} Bg4
{[%emt 0:06:08]} 5. Be2 {[%emt 0:00:25]} e6 {[%emt 0:01:16]} 6. Bb2 {[%emt 0:
00:00]} Nbd7 {[%emt 0:00:11]} 7. O-O {[%emt 0:00:10]} Bd6 {[%emt 0:03:53]} 8.
Nc3 {[%emt 0:01:34]} O-O {[%emt 0:02:12]} 9. cxd5 {[%emt 0:07:58]} exd5 {
[%emt 0:01:11]} 10. Nd4 {[%emt 0:00:06]} Bxe2 {[%emt 0:01:49]} 11. Qxe2 {
[%emt 0:00:08]} Re8 {[%emt 0:00:31]} 12. f4 {[%emt 0:00:44]} c5 {[%emt 0:03:50]
} 13. Nf5 {[%emt 0:01:08]} Bf8 {[%emt 0:00:06]} 14. Qf3 {[%emt 0:00:36]} Nb6 {
[%emt 0:11:58]} 15. Qg3 {[%emt 0:02:11]} g6 {[%emt 0:01:50]} 16. Qg5 {[%emt 0:
00:00]} Ne4 {[%emt 0:15:01]} 17. Nh6+ {[%emt 0:11:36]} Bxh6 {[%emt 0:00:16]}
18. Qxh6 {[%emt 0:00:06]} d4 {[%emt 0:00:38]} 19. Nxe4 {[%emt 0:07:19]} Rxe4 {
[%emt 0:00:13]} 20. exd4 {[%emt 0:07:41]} cxd4 {[%emt 0:00:14]} 21. Rf3 {
[%emt 0:00:09]} f5 {[%emt 0:03:21]} 22. d3 {[%emt 0:05:34]} Re2 {[%emt 0:01:28]
} 23. Rf2 {[%emt 0:07:26]} Rxf2 {[%emt 0:00:59]} 24. Kxf2 {[%emt 0:00:04]} Rc8
{[%emt 0:00:08]} 25. Rc1 {[%emt 0:03:35]} Rxc1 {[%emt 0:10:12]} 26. Bxc1 {
[%emt 0:00:06]} Nd5 {[%emt 0:00:50]} 27. Qh3 {[%emt 0:02:53]} Qa5 {[%emt 0:00:
00]} 28. a3 {[%emt 0:06:34]} Qc3 {[%emt 0:00:43]} 29. Qf3 {[%emt 0:00:06]} Qc2+
{[%emt 0:00:32]} 30. Kg3 {[%emt 0:02:51]} Nc3 {[%emt 0:00:23]} 31. Qxb7 {
[%emt 0:01:13]} Qxc1 {[%emt 0:00:11]} 32. Qa8+ {[%emt 0:03:53]} Kg7 {[%emt 0:
00:00]} 33. Qxa7+ {[%emt 0:00:04]} Kh6 {[%emt 0:00:04]} 34. Qe7 {[%emt 0:00:09]
} Ne4+ {[%emt 0:02:02]} 35. Kh3 {[%emt 0:02:24]} Qe3+ {[%emt 0:00:07]} 0-1

[Event "44th Chess Olympiad Women 2022"]
[Site "Chennai"]
[Date "2022.08.07"]
[Round "9.32"]
[White "Rogule, Laura"]
[Black "Wijesuriya, G P Y.."]
[Result "1-0"]
[WhiteElo "2292"]
[BlackElo "1579"]
[Annotator "RC"]
[PlyCount "61"]
[EventDate "2022.??.??"]
[TimeControl "60"]

1. c4 {[%emt 0:00:03]} e5 {[%emt 0:00:16]} 2. Nc3 {[%emt 0:00:44]} Nf6 {
[%emt 0:00:06]} 3. g3 {[%emt 0:02:08]} Nc6 {[%emt 0:00:10]} 4. Bg2 {[%emt 0:00:
00]} Bc5 {[%emt 0:00:09]} 5. a3 {[%emt 0:02:32]} a5 {[%emt 0:03:36]} 6. e3 {
[%emt 0:00:57]} d6 {[%emt 0:00:32]} 7. Nge2 {[%emt 0:05:47]} Bb6 {[%emt 0:00:
00]} 8. h3 {[%emt 0:11:48]} Be6 {[%emt 0:12:38]} 9. Nd5 {[%emt 0:02:50]} Bxd5 {
[%emt 0:00:37]} 10. cxd5 {[%emt 0:00:05]} Ne7 {[%emt 0:00:06]} 11. Nc3 {
[%emt 0:08:36]} O-O {[%emt 0:02:45]} 12. O-O {[%emt 0:01:27]} Rc8 {[%emt 0:00:
00]} 13. b4 {[%emt 0:04:56]} axb4 {[%emt 0:04:32]} 14. axb4 {[%emt 0:00:02]}
Qd7 {[%emt 0:01:15]} 15. Qb3 {[%emt 0:04:17]} Qf5 {[%emt 0:08:20]} 16. f4 {
[%emt 0:10:19]} exf4 {[%emt 0:06:36]} 17. Rxf4 {[%emt 0:00:24]} Qg5 {[%emt 0:
00:00]} 18. Bb2 {[%emt 0:03:08]} Ng6 {[%emt 0:06:22]} 19. h4 {[%emt 0:03:23]}
Qxg3 {[%emt 0:00:18]} 20. Ne2 {[%emt 0:03:41]} Qxf4 {[%emt 0:00:12]} 21. Nxf4 {
[%emt 0:00:05]} Nxf4 {[%emt 0:00:05]} 22. Bxf6 {[%emt 0:03:54]} Nxg2 {[%emt 0:
00:00]} 23. Kxg2 {[%emt 0:02:02]} gxf6 {[%emt 0:00:07]} 24. Qb2 {[%emt 0:02:24]
} Rce8 {[%emt 0:10:31]} 25. Qxf6 {[%emt 0:01:21]} h5 {[%emt 0:06:07]} 26. Kf3 {
[%emt 0:02:30]} Kh7 {[%emt 0:02:16]} 27. Qf5+ {[%emt 0:00:35]} Kh6 {[%emt 0:00:
00]} 28. Qg5+ {[%emt 0:00:08]} Kh7 {[%emt 0:00:18]} 29. Qxh5+ {[%emt 0:00:18]}
Kg7 {[%emt 0:00:06]} 30. Rg1+ {[%emt 0:00:14]} Kf6 {[%emt 0:00:07]} 31. Qg5# {
[%emt 0:00:05]} 1-0

[Event "44th Chess Olympiad Women 2022"]
[Site "Chennai"]
[Date "2022.08.07"]
[Round "9.33"]
[White "Ndirangu, Joyce Nyaruai"]
[Black "Elansary, Eman"]
[Result "1-0"]
[WhiteElo "1679"]
[BlackElo "1936"]
[Annotator "RC"]
[PlyCount "157"]
[EventDate "2022.??.??"]
[TimeControl "60"]

1. d4 {[%emt 0:01:17]} d5 {[%emt 0:00:08]} 2. Nf3 {[%emt 0:01:19]} Nf6 {
[%emt 0:00:10]} 3. Bf4 {[%emt 0:00:11]} c5 {[%emt 0:00:16]} 4. e3 {[%emt 0:00:
00]} Nc6 {[%emt 0:00:18]} 5. c3 {[%emt 0:00:40]} Qb6 {[%emt 0:00:49]} 6. Qc1 {
[%emt 0:05:35]} Bf5 {[%emt 0:00:42]} 7. Nbd2 {[%emt 0:01:54]} e6 {[%emt 0:00:
00]} 8. Be2 {[%emt 0:02:47]} Be7 {[%emt 0:00:50]} 9. O-O {[%emt 0:01:59]} O-O {
[%emt 0:05:19]} 10. Ne5 {[%emt 0:17:13]} Nxe5 {[%emt 0:03:58]} 11. dxe5 {
[%emt 0:01:13]} Nd7 {[%emt 0:00:25]} 12. c4 {[%emt 0:02:07]} f6 {[%emt 0:05:36]
} 13. cxd5 {[%emt 0:00:43]} exd5 {[%emt 0:00:32]} 14. Bf3 {[%emt 0:03:19]} Be6
{[%emt 0:02:50]} 15. exf6 {[%emt 0:03:37]} Bxf6 {[%emt 0:04:33]} 16. Rb1 {
[%emt 0:00:31]} Ne5 {[%emt 0:01:45]} 17. Bxe5 {[%emt 0:09:37]} Bxe5 {[%emt 0:
00:00]} 18. e4 {[%emt 0:00:33]} dxe4 {[%emt 0:21:13]} 19. Bxe4 {[%emt 0:01:01]}
Bf4 {[%emt 0:00:49]} 20. Qc2 {[%emt 0:02:43]} Rad8 {[%emt 0:05:22]} 21. Nf3 {
[%emt 0:12:00]} h6 {[%emt 0:04:23]} 22. b3 {[%emt 0:05:58]} Bf7 {[%emt 0:06:12]
} 23. g3 {[%emt 0:05:12]} Bc7 {[%emt 0:01:08]} 24. Rbd1 {[%emt 0:04:57]} Rfe8 {
[%emt 0:05:11]} 25. Bh7+ {[%emt 0:02:35]} Kh8 {[%emt 0:01:47]} 26. Rxd8 {
[%emt 0:01:43]} Rxd8 {[%emt 0:01:01]} 27. Bf5 {[%emt 0:01:49]} Qd6 {[%emt 0:00:
00]} 28. Bh3 {[%emt 0:01:17]} Bg6 {[%emt 0:00:36]} 29. Bf5 {[%emt 0:02:38]}
Bxf5 {[%emt 0:01:04]} 30. Qxf5 {[%emt 0:00:19]} Rf8 {[%emt 0:00:12]} 31. Qe4 {
[%emt 0:00:41]} b5 {[%emt 0:03:04]} 32. Nh4 {[%emt 0:01:02]} Kg8 {[%emt 0:00:
00]} 33. Re1 {[%emt 0:01:09]} Ba5 {[%emt 0:06:16]} 34. Re2 {[%emt 0:01:53]} Bc3
{[%emt 0:08:13]} 35. Ng6 {[%emt 0:01:33]} Rd8 {[%emt 0:01:53]} 36. Ne7+ {
[%emt 0:00:53]} Kh8 {[%emt 0:01:14]} 37. Kg2 {[%emt 0:00:17]} a6 {[%emt 0:00:
00]} 38. Ng6+ {[%emt 0:02:55]} Kg8 {[%emt 0:00:08]} 39. Ne7+ {[%emt 0:00:30]}
Kh8 {[%emt 0:00:17]} 40. Nf5 {[%emt 0:01:02]} Qd5 {[%emt 0:00:38]} 41. Qxd5 {
[%emt 0:31:07]} Rxd5 {[%emt 0:03:44]} 42. Ne7 {[%emt 0:00:00]} Rd6 {[%emt 0:00:
00]} 43. f4 {[%emt 0:00:00]} Kh7 {[%emt 0:01:13]} 44. f5 {[%emt 0:00:00]} Rd2 {
[%emt 0:02:55]} 45. Rxd2 {[%emt 0:00:00]} Bxd2 {[%emt 0:00:01]} 46. Kf3 {
[%emt 0:00:00]} Bg5 {[%emt 0:01:20]} 47. Nd5 {[%emt 0:00:00]} Bd8 {[%emt 0:00:
00]} 48. Ke4 {[%emt 0:00:00]} h5 {[%emt 0:01:16]} 49. Nf4 {[%emt 0:00:00]} h4 {
[%emt 0:05:42]} 50. Ne6 {[%emt 0:00:00]} hxg3 {[%emt 0:01:09]} 51. hxg3 {
[%emt 0:00:00]} Be7 {[%emt 0:00:20]} 52. Kd5 {[%emt 0:00:00]} c4 {[%emt 0:00:
00]} 53. bxc4 {[%emt 0:00:00]} bxc4 {[%emt 0:00:02]} 54. Kxc4 {[%emt 0:00:00]}
a5 {[%emt 0:01:06]} 55. a4 {[%emt 0:00:00]} Bb4 {[%emt 0:01:22]} 56. g4 {
[%emt 0:00:00]} Kh6 {[%emt 0:01:07]} 57. Kd5 {[%emt 0:02:09]} Bd2 {[%emt 0:00:
00]} 58. Kd6 {[%emt 0:00:50]} Kh7 {[%emt 0:01:39]} 59. Ke7 {[%emt 0:00:33]} Kg8
{[%emt 0:00:25]} 60. g5 {[%emt 0:00:14]} Bb4+ {[%emt 0:00:21]} 61. Ke8 {
[%emt 0:00:40]} Bc3 {[%emt 0:00:28]} 62. g6 {[%emt 0:00:36]} Bb4 {[%emt 0:00:
00]} 63. Kd7 {[%emt 0:01:22]} Bc3 {[%emt 0:00:57]} 64. Kc6 {[%emt 0:00:23]} Bd2
{[%emt 0:00:56]} 65. Kb5 {[%emt 0:00:49]} Bc3 {[%emt 0:00:24]} 66. Kc6 {
[%emt 0:01:11]} Bb4 {[%emt 0:00:53]} 67. Kd7 {[%emt 0:00:27]} Bc3 {[%emt 0:00:
00]} 68. Kd8 {[%emt 0:00:20]} Bf6+ {[%emt 0:01:24]} 69. Ke8 {[%emt 0:00:14]}
Bc3 {[%emt 0:00:09]} 70. Nc5 {[%emt 0:00:58]} Bd4 {[%emt 0:00:55]} 71. Nb7 {
[%emt 0:00:46]} Bc3 {[%emt 0:00:23]} 72. Nd8 {[%emt 0:00:21]} Bb4 {[%emt 0:00:
00]} 73. Nc6 {[%emt 0:00:09]} Bc3 {[%emt 0:00:19]} 74. Ne7+ {[%emt 0:00:07]}
Kh8 {[%emt 0:00:12]} 75. Kf7 {[%emt 0:00:13]} Bb2 {[%emt 0:01:52]} 76. Nd5 {
[%emt 0:00:54]} Ba3 {[%emt 0:02:15]} 77. f6 {[%emt 0:01:25]} Bb2 {[%emt 0:00:
00]} 78. fxg7+ {[%emt 0:00:32]} Bxg7 {[%emt 0:00:11]} 79. Nb6 {[%emt 0:00:19]}
1-0